[Event "*** Titled Tuesday Blitz"]
[Site "Chess.com"]
[Date "2019.10.01"]
[Round "6"]
[White "TrenerChos"]
[Black "ahkashefi2800"]
[Result "1-0"]
[WhiteElo "2411"]
[BlackElo "2179"]
[TimeControl "180+2"]
[EndTime "14:26:13 PDT"]
[Termination "TrenerChos won on time"]

1. e4 {[%clk 0:02:54.5]} 1... c6 {[%clk 0:03:00.7]} 2. Nf3 {[%clk 0:02:54.6]}
2... d5 {[%clk 0:03:00.6]} 3. Nc3 {[%clk 0:02:56.1]} 3... dxe4 {[%clk
0:02:57.7]} 4. Nxe4 {[%clk 0:02:56.2]} 4... Nd7 {[%clk 0:02:56]} 5. d4 {[%clk
0:02:53.9]} 5... Ngf6 {[%clk 0:02:54.7]} 6. Neg5 {[%clk 0:02:54.3]} 6... e6
{[%clk 0:02:51.8]} 7. Bd3 {[%clk 0:02:53.9]} 7... Bd6 {[%clk 0:02:51.5]} 8. Qe2
{[%clk 0:02:53.5]} 8... h6 {[%clk 0:02:43.1]} 9. Ne4 {[%clk 0:02:50.8]} 9...
Nxe4 {[%clk 0:02:42.1]} 10. Qxe4 {[%clk 0:02:51.4]} 10... Qc7 {[%clk 0:02:33.9]}
11. Bd2 {[%clk 0:02:47.7]} 11... c5 {[%clk 0:02:31.5]} 12. c4 {[%clk 0:02:43.5]}
12... cxd4 {[%clk 0:02:28.2]} 13. Nxd4 {[%clk 0:02:43.6]} 13... Nc5 {[%clk
0:02:27.1]} 14. Qe2 {[%clk 0:02:42.4]} 14... Nxd3+ {[%clk 0:02:27.4]} 15. Qxd3
{[%clk 0:02:43.2]} 15... Bd7 {[%clk 0:02:29.3]} 16. Bc3 {[%clk 0:02:36.1]} 16...
O-O-O {[%clk 0:02:29.1]} 17. Qe2 {[%clk 0:02:31.6]} 17... Bc6 {[%clk 0:02:28.5]}
18. Nb5 {[%clk 0:02:30.4]} 18... Bxb5 {[%clk 0:02:24.7]} 19. cxb5 {[%clk
0:02:30.6]} 19... Kb8 {[%clk 0:02:18.5]} 20. a4 {[%clk 0:02:29.8]} 20... f6
{[%clk 0:02:13.8]} 21. a5 {[%clk 0:02:30]} 21... Qe7 {[%clk 0:02:06.5]} 22. O-O
{[%clk 0:02:26.7]} 22... Rd7 {[%clk 0:02:03.5]} 23. Rfe1 {[%clk 0:02:21.5]}
23... e5 {[%clk 0:01:59.8]} 24. Ra4 {[%clk 0:02:21.8]} 24... Rc8 {[%clk
0:01:45.2]} 25. h3 {[%clk 0:02:21.5]} 25... Bc5 {[%clk 0:01:43.6]} 26. b6 {[%clk
0:02:06.7]} 26... a6 {[%clk 0:01:28.6]} 27. Rc4 {[%clk 0:02:06.3]} 27... Rcd8
{[%clk 0:01:22.6]} 28. b4 {[%clk 0:01:48]} 28... Bd4 {[%clk 0:01:19.8]} 29. Bxd4
{[%clk 0:01:46.3]} 29... Rxd4 {[%clk 0:01:21.7]} 30. Rxd4 {[%clk 0:01:45.7]}
30... Rxd4 {[%clk 0:01:20.9]} 31. b5 {[%clk 0:01:46.5]} 31... Qb4 {[%clk
0:01:14.8]} 32. bxa6 {[%clk 0:01:46.2]} 32... Qxa5 {[%clk 0:01:14.6]} 33. axb7
{[%clk 0:01:36.2]} 33... Kxb7 {[%clk 0:01:08.8]} 34. Rb1 {[%clk 0:01:33.3]}
34... Rb4 {[%clk 0:01:06.3]} 35. Rd1 {[%clk 0:01:29.7]} 35... Qb5 {[%clk
0:01:04.6]} 36. Qf3+ {[%clk 0:01:27.7]} 36... Kxb6 {[%clk 0:00:36.3]} 37. Qa8
{[%clk 0:01:27.4]} 37... Rd4 {[%clk 0:00:18.8]} 38. Qb8+ {[%clk 0:01:25.2]}
38... Kc5 {[%clk 0:00:15.9]} 39. Rc1+ {[%clk 0:01:25.7]} 39... Rc4 {[%clk
0:00:16.4]} 40. Qf8+ {[%clk 0:01:24.3]} 40... Kd5 {[%clk 0:00:11.6]} 41. Qf7+
{[%clk 0:01:24.5]} 41... Kd4 {[%clk 0:00:11.8]} 42. Rd1+ {[%clk 0:01:24.6]}
42... Kc3 {[%clk 0:00:12]} 43. Qxg7 {[%clk 0:01:24.6]} 43... Kc2 {[%clk
0:00:08.9]} 44. Re1 {[%clk 0:01:23.3]} 44... Qb4 {[%clk 0:00:03]} 45. Qg6+
{[%clk 0:01:22.7]} 45... e4 {[%clk 0:00:04]} 46. Re3 {[%clk 0:01:19.2]} 46...
Kd2 {[%clk 0:00:02.7]} 47. Qxh6 {[%clk 0:01:18.4]} 47... Kc1 {[%clk 0:00:02.6]}
48. Rb3+ {[%clk 0:01:17.6]} 1-0

[Event "*** Titled Tuesday Blitz"]
[Site "Chess.com"]
[Date "2019.10.01"]
[Round "6"]
[White "eljanov"]
[Black "DanielNaroditsky"]
[Result "1-0"]
[WhiteElo "2801"]
[BlackElo "3010"]
[TimeControl "180+2"]
[EndTime "14:26:19 PDT"]
[Termination "eljanov won by resignation"]

1. Nf3 {[%clk 0:03:01.9]} 1... d6 {[%clk 0:02:56.1]} 2. d4 {[%clk 0:03:01.4]}
2... Nf6 {[%clk 0:02:54.7]} 3. c4 {[%clk 0:03:02.1]} 3... g6 {[%clk 0:02:55.9]}
4. Nc3 {[%clk 0:03:02.1]} 4... Bg7 {[%clk 0:02:57.8]} 5. e4 {[%clk 0:03:02.8]}
5... O-O {[%clk 0:02:58.4]} 6. Be2 {[%clk 0:03:04.3]} 6... e5 {[%clk 0:02:59.8]}
7. O-O {[%clk 0:03:05.6]} 7... exd4 {[%clk 0:03:01.3]} 8. Nxd4 {[%clk
0:03:06.5]} 8... Re8 {[%clk 0:03:03.2]} 9. f3 {[%clk 0:03:07.1]} 9... Nc6 {[%clk
0:03:04.6]} 10. Be3 {[%clk 0:03:06.9]} 10... Nh5 {[%clk 0:03:06.1]} 11. Qd2
{[%clk 0:03:07.7]} 11... Nf4 {[%clk 0:03:07.5]} 12. Rfd1 {[%clk 0:03:07.1]}
12... Nxd4 {[%clk 0:02:45.7]} 13. Bxd4 {[%clk 0:03:07.8]} 13... Bxd4+ {[%clk
0:02:39]} 14. Qxd4 {[%clk 0:03:08.5]} 14... Nxe2+ {[%clk 0:02:40.9]} 15. Nxe2
{[%clk 0:03:09.3]} 15... b6 {[%clk 0:02:42.8]} 16. Nc3 {[%clk 0:03:06]} 16...
Bb7 {[%clk 0:02:44.2]} 17. Qd2 {[%clk 0:02:52]} 17... Re5 {[%clk 0:02:41.2]} 18.
Ne2 {[%clk 0:02:41.7]} 18... f5 {[%clk 0:02:31.2]} 19. exf5 {[%clk 0:02:39.5]}
19... Rxf5 {[%clk 0:02:33.1]} 20. Re1 {[%clk 0:02:28.9]} 20... Qh4 {[%clk
0:02:09.3]} 21. Ng3 {[%clk 0:02:21.7]} 21... Rf7 {[%clk 0:02:10.3]} 22. b3
{[%clk 0:02:16.9]} 22... Raf8 {[%clk 0:02:11.3]} 23. Re3 {[%clk 0:02:08.2]}
23... g5 {[%clk 0:02:00.2]} 24. Rae1 {[%clk 0:01:57.4]} 24... g4 {[%clk
0:01:56.5]} 25. fxg4 {[%clk 0:01:42.9]} 25... Qxg4 {[%clk 0:01:52.2]} 26. Re8
{[%clk 0:01:38.4]} 26... h5 {[%clk 0:01:30]} 27. Rxf8+ {[%clk 0:01:24.6]} 27...
Rxf8 {[%clk 0:01:31.9]} 28. Qd3 {[%clk 0:00:53.5]} 28... h4 {[%clk 0:01:16.9]}
29. Re7 {[%clk 0:00:53.3]} 29... Rf7 {[%clk 0:00:42.7]} 30. Rxf7 {[%clk
0:00:50.1]} 30... Kxf7 {[%clk 0:00:42.1]} 31. Qf5+ {[%clk 0:00:50.4]} 31... Qxf5
{[%clk 0:00:40.5]} 32. Nxf5 {[%clk 0:00:51.5]} 32... Be4 {[%clk 0:00:30.4]} 33.
Nxh4 {[%clk 0:00:52.5]} 33... Bb1 {[%clk 0:00:31.7]} 34. Nf3 {[%clk 0:00:54]}
34... Bxa2 {[%clk 0:00:33]} 35. Nd2 {[%clk 0:00:55.1]} 35... c6 {[%clk
0:00:19.4]} 36. Kf2 {[%clk 0:00:55.7]} 36... a5 {[%clk 0:00:20.7]} 37. Ke3
{[%clk 0:00:55.7]} 37... b5 {[%clk 0:00:20.6]} 38. Kd3 {[%clk 0:00:44.4]} 38...
bxc4+ {[%clk 0:00:13.6]} 39. bxc4 {[%clk 0:00:40.2]} 39... d5 {[%clk 0:00:13.1]}
40. c5 {[%clk 0:00:26.6]} 40... Kf6 {[%clk 0:00:10.4]} 41. Kc3 {[%clk
0:00:21.2]} 41... Ke5 {[%clk 0:00:08.8]} 42. Kb2 {[%clk 0:00:21.5]} 42... Bc4
{[%clk 0:00:10]} 43. Nxc4+ {[%clk 0:00:21.5]} 43... dxc4 {[%clk 0:00:11.9]} 44.
Kc3 {[%clk 0:00:22.7]} 44... Kd5 {[%clk 0:00:13.5]} 45. h4 {[%clk 0:00:23.9]}
45... a4 {[%clk 0:00:03.6]} 46. h5 {[%clk 0:00:25]} 46... a3 {[%clk 0:00:05.4]}
47. h6 {[%clk 0:00:25.7]} 47... a2 {[%clk 0:00:07.1]} 48. Kb2 {[%clk 0:00:26.9]}
48... c3+ {[%clk 0:00:08.8]} 49. Kxa2 {[%clk 0:00:27.8]} 49... Kc4 {[%clk
0:00:10.7]} 50. h7 {[%clk 0:00:28.6]} 50... c2 {[%clk 0:00:12.6]} 51. Kb2 {[%clk
0:00:28.7]} 51... c1=Q+ {[%clk 0:00:14.5]} 1-0

[Event "*** Titled Tuesday Blitz"]
[Site "Chess.com"]
[Date "2019.10.01"]
[Round "6"]
[White "HouseOfDurin"]
[Black "ChessBitl"]
[Result "0-1"]
[WhiteElo "2097"]
[BlackElo "2303"]
[TimeControl "180+2"]
[EndTime "14:26:19 PDT"]
[Termination "ChessBitl won on time"]

1. d4 {[%clk 0:03:01.9]} 1... Nf6 {[%clk 0:03:00.3]} 2. Bg5 {[%clk 0:03:03.1]}
2... e6 {[%clk 0:02:59.6]} 3. e4 {[%clk 0:03:03.3]} 3... Be7 {[%clk 0:03:00.7]}
4. Bxf6 {[%clk 0:03:04.4]} 4... Bxf6 {[%clk 0:03:01.6]} 5. e5 {[%clk 0:03:06]}
5... Be7 {[%clk 0:03:03]} 6. Qg4 {[%clk 0:03:07.4]} 6... O-O {[%clk 0:03:02.7]}
7. Bd3 {[%clk 0:03:08.8]} 7... f5 {[%clk 0:02:58.6]} 8. Qe2 {[%clk 0:02:48.9]}
8... c5 {[%clk 0:02:58.5]} 9. dxc5 {[%clk 0:02:38.5]} 9... Bxc5 {[%clk
0:02:55.1]} 10. Nd2 {[%clk 0:02:39.4]} 10... Nc6 {[%clk 0:02:48.4]} 11. Ngf3
{[%clk 0:02:39.3]} 11... b6 {[%clk 0:02:45.1]} 12. Nb3 {[%clk 0:02:36.2]} 12...
Be7 {[%clk 0:02:42.5]} 13. O-O-O {[%clk 0:02:34.5]} 13... Qc7 {[%clk 0:02:40.2]}
14. Nbd4 {[%clk 0:02:13.5]} 14... Nxd4 {[%clk 0:02:37.6]} 15. Nxd4 {[%clk
0:02:15.4]} 15... Bb7 {[%clk 0:02:38.4]} 16. Nb5 {[%clk 0:01:22.4]} 16... Qc5
{[%clk 0:02:36.2]} 17. Kb1 {[%clk 0:01:03.3]} 17... Bd5 {[%clk 0:02:16.5]} 18.
Rhg1 {[%clk 0:00:48.1]} 18... a6 {[%clk 0:02:11.5]} 19. Nd6 {[%clk 0:00:48.4]}
19... Bxd6 {[%clk 0:02:11.6]} 20. exd6 {[%clk 0:00:50.3]} 20... b5 {[%clk
0:01:53.7]} 21. b3 {[%clk 0:00:44.7]} 21... Qxd6 {[%clk 0:01:45.3]} 22. c4
{[%clk 0:00:45.1]} 22... bxc4 {[%clk 0:01:42.9]} 23. Bxc4 {[%clk 0:00:46.3]}
23... Be4+ {[%clk 0:01:39.8]} 24. Bd3 {[%clk 0:00:17.4]} 24... Bxd3+ {[%clk
0:01:40.2]} 25. Rxd3 {[%clk 0:00:16.2]} 25... Qc7 {[%clk 0:01:34.6]} 26. Rc1
{[%clk 0:00:14.4]} 26... Qb7 {[%clk 0:01:35.3]} 27. Qe5 {[%clk 0:00:11]} 27...
Rac8 {[%clk 0:01:26.2]} 28. Qd6 {[%clk 0:00:03.5]} 28... Rxc1+ {[%clk
0:01:25.4]} 29. Kxc1 {[%clk 0:00:05.4]} 29... Rc8+ {[%clk 0:01:22.9]} 30. Kb2
{[%clk 0:00:06.4]} 30... Qxg2 {[%clk 0:01:11.2]} 31. Qxd7 {[%clk 0:00:07.4]}
31... Rf8 {[%clk 0:01:03.2]} 32. Qxe6+ {[%clk 0:00:07.9]} 32... Kh8 {[%clk
0:01:04.8]} 33. Qe3 {[%clk 0:00:08.5]} 33... Qxh2 {[%clk 0:00:58.3]} 34. Rd7
{[%clk 0:00:09.5]} 34... f4 {[%clk 0:00:50]} 35. Qd4 {[%clk 0:00:10.5]} 35...
Qh6 {[%clk 0:00:49.7]} 36. Rd8 {[%clk 0:00:09.9]} 36... Qf6 {[%clk 0:00:10.2]}
37. Qxf6 {[%clk 0:00:07.9]} 37... gxf6 {[%clk 0:00:10.6]} 38. Rxf8+ {[%clk
0:00:08.8]} 38... Kg7 {[%clk 0:00:12.1]} 39. Ra8 {[%clk 0:00:05.8]} 39... h5
{[%clk 0:00:11.9]} 40. Rxa6 {[%clk 0:00:06.3]} 40... h4 {[%clk 0:00:12.8]} 41.
Ra4 {[%clk 0:00:06.6]} 41... Kg6 {[%clk 0:00:10.5]} 42. Rxf4 {[%clk 0:00:07.9]}
42... Kg5 {[%clk 0:00:11]} 0-1

[Event "*** Titled Tuesday Blitz"]
[Site "Chess.com"]
[Date "2019.10.01"]
[Round "6"]
[White "Colombiano07"]
[Black "Sjakkerntobi"]
[Result "1/2-1/2"]
[WhiteElo "2199"]
[BlackElo "2042"]
[TimeControl "180+2"]
[EndTime "14:26:38 PDT"]
[Termination "Game drawn - insufficient material"]

1. e4 {[%clk 0:03:01.9]} 1... Nc6 {[%clk 0:03:00.8]} 2. Nf3 {[%clk 0:03:02.3]}
2... e6 {[%clk 0:03:02]} 3. d4 {[%clk 0:03:02.6]} 3... d5 {[%clk 0:03:03.6]} 4.
e5 {[%clk 0:03:02.8]} 4... f6 {[%clk 0:03:05]} 5. Bb5 {[%clk 0:03:03.4]} 5...
Bd7 {[%clk 0:02:59.6]} 6. O-O {[%clk 0:03:03.7]} 6... fxe5 {[%clk 0:03:00.5]} 7.
dxe5 {[%clk 0:02:57.2]} 7... Nh6 {[%clk 0:02:55.9]} 8. Bxh6 {[%clk 0:02:56.1]}
8... gxh6 {[%clk 0:02:57.8]} 9. c4 {[%clk 0:02:54.5]} 9... Ne7 {[%clk
0:02:49.6]} 10. Nc3 {[%clk 0:02:52.8]} 10... Bxb5 {[%clk 0:02:48.5]} 11. Nxb5
{[%clk 0:02:50.8]} 11... a6 {[%clk 0:02:49]} 12. Nbd4 {[%clk 0:02:51.8]} 12...
Qd7 {[%clk 0:02:46.5]} 13. Qb3 {[%clk 0:02:51.5]} 13... c5 {[%clk 0:02:45.2]}
14. Ne2 {[%clk 0:02:43.9]} 14... d4 {[%clk 0:02:27.1]} 15. Ng3 {[%clk
0:02:44.6]} 15... Ng6 {[%clk 0:02:24.6]} 16. Rfe1 {[%clk 0:02:38.8]} 16... Be7
{[%clk 0:02:25.4]} 17. Qd3 {[%clk 0:02:32.9]} 17... O-O {[%clk 0:01:54.9]} 18.
Rad1 {[%clk 0:02:32.4]} 18... Qc6 {[%clk 0:01:54.6]} 19. b4 {[%clk 0:02:30.5]}
19... Nf4 {[%clk 0:01:49.4]} 20. Qe4 {[%clk 0:02:29]} 20... Qxe4 {[%clk
0:01:40]} 21. Nxe4 {[%clk 0:02:30.9]} 21... b6 {[%clk 0:01:32.3]} 22. bxc5
{[%clk 0:02:30]} 22... bxc5 {[%clk 0:01:34.2]} 23. Rb1 {[%clk 0:02:26.3]} 23...
Rab8 {[%clk 0:01:34]} 24. Red1 {[%clk 0:02:23.3]} 24... Kg7 {[%clk 0:01:27]} 25.
Ne1 {[%clk 0:02:23.4]} 25... Kg6 {[%clk 0:01:16.7]} 26. g3 {[%clk 0:02:03.4]}
26... Nh3+ {[%clk 0:01:16.6]} 27. Kg2 {[%clk 0:02:03.7]} 27... Ng5 {[%clk
0:01:17.5]} 28. Nxg5 {[%clk 0:01:59.2]} 28... hxg5 {[%clk 0:01:19.4]} 29. Nd3
{[%clk 0:01:59.4]} 29... Kf5 {[%clk 0:01:20.8]} 30. h3 {[%clk 0:01:58.1]} 30...
h5 {[%clk 0:01:21.3]} 31. f3 {[%clk 0:01:57.4]} 31... Rfc8 {[%clk 0:00:59.6]}
32. g4+ {[%clk 0:01:57.5]} 32... hxg4 {[%clk 0:00:59.8]} 33. hxg4+ {[%clk
0:01:59.4]} 33... Kg6 {[%clk 0:01:01.1]} 34. Kg3 {[%clk 0:01:59.2]} 34... Rf8
{[%clk 0:00:55.8]} 35. a4 {[%clk 0:01:58.4]} 35... Rfc8 {[%clk 0:00:42.6]} 36.
a5 {[%clk 0:01:58.5]} 36... Rf8 {[%clk 0:00:43.2]} 37. Rb6 {[%clk 0:01:51.5]}
37... Rxb6 {[%clk 0:00:42.6]} 38. axb6 {[%clk 0:01:53.4]} 38... Rb8 {[%clk
0:00:43.9]} 39. Rb1 {[%clk 0:01:54.6]} 39... Rb7 {[%clk 0:00:42.5]} 40. f4
{[%clk 0:01:51]} 40... a5 {[%clk 0:00:29]} 41. Kf3 {[%clk 0:01:50.5]} 41... a4
{[%clk 0:00:28.5]} 42. Ke4 {[%clk 0:01:51.4]} 42... gxf4 {[%clk 0:00:27.1]} 43.
Nxf4+ {[%clk 0:01:51.3]} 43... Kf7 {[%clk 0:00:28.8]} 44. Ra1 {[%clk 0:01:37.3]}
44... Rxb6 {[%clk 0:00:29.5]} 45. Rxa4 {[%clk 0:01:38.7]} 45... Rb3 {[%clk
0:00:29.6]} 46. Nd3 {[%clk 0:01:33.2]} 46... Rc3 {[%clk 0:00:30.2]} 47. Ra6
{[%clk 0:01:20.2]} 47... Rxc4 {[%clk 0:00:28.8]} 48. Nf4 {[%clk 0:01:21.3]}
48... Rc3 {[%clk 0:00:28]} 49. Nxe6 {[%clk 0:01:20.6]} 49... Re3+ {[%clk
0:00:29]} 50. Kf4 {[%clk 0:01:19]} 50... Re1 {[%clk 0:00:25.2]} 51. g5 {[%clk
0:01:19.1]} 51... Rf1+ {[%clk 0:00:26.2]} 52. Ke4 {[%clk 0:01:19.7]} 52... Re1+
{[%clk 0:00:27.3]} 53. Kf4 {[%clk 0:01:20.9]} 53... Rf1+ {[%clk 0:00:28.2]} 54.
Ke4 {[%clk 0:01:22.1]} 54... Re1+ {[%clk 0:00:29.6]} 55. Kf5 {[%clk 0:01:23.8]}
55... Rf1+ {[%clk 0:00:29.8]} 56. Nf4 {[%clk 0:01:24.8]} 56... d3 {[%clk
0:00:28.4]} 57. g6+ {[%clk 0:01:22.8]} 57... Kg7 {[%clk 0:00:25]} 58. Ra2 {[%clk
0:01:13.1]} 58... c4 {[%clk 0:00:25.3]} 59. Ke4 {[%clk 0:01:14]} 59... Rxf4+
{[%clk 0:00:22.4]} 60. Kxf4 {[%clk 0:01:14.9]} 60... c3 {[%clk 0:00:24.1]} 61.
Ke3 {[%clk 0:01:12.2]} 61... c2 {[%clk 0:00:25.4]} 62. Ra1 {[%clk 0:01:08.5]}
62... Bg5+ {[%clk 0:00:25.2]} 63. Kxd3 {[%clk 0:01:08.8]} 63... c1=Q {[%clk
0:00:27.1]} 64. Rxc1 {[%clk 0:01:09.9]} 64... Bxc1 {[%clk 0:00:29]} 65. e6
{[%clk 0:01:10.9]} 65... Kxg6 {[%clk 0:00:29.8]} 66. e7 {[%clk 0:01:12.8]} 66...
Kf7 {[%clk 0:00:31.4]} 67. e8=Q+ {[%clk 0:01:14.7]} 67... Kxe8 {[%clk 0:00:33]}
1/2-1/2

[Event "*** Titled Tuesday Blitz"]
[Site "Chess.com"]
[Date "2019.10.01"]
[Round "6"]
[White "MikeSailer"]
[Black "aranibos"]
[Result "1-0"]
[WhiteElo "2088"]
[BlackElo "2156"]
[TimeControl "180+2"]
[EndTime "14:26:42 PDT"]
[Termination "MikeSailer won by resignation"]

1. b4 {[%clk 0:03:01.8]} 1... e6 {[%clk 0:02:57.4]} 2. Bb2 {[%clk 0:03:03]} 2...
Nf6 {[%clk 0:02:58.3]} 3. b5 {[%clk 0:03:03.8]} 3... a6 {[%clk 0:02:58.9]} 4. a4
{[%clk 0:03:04.8]} 4... axb5 {[%clk 0:02:59.5]} 5. axb5 {[%clk 0:03:06.5]} 5...
Rxa1 {[%clk 0:02:59.5]} 6. Bxa1 {[%clk 0:03:08.2]} 6... d5 {[%clk 0:02:59.8]} 7.
Nf3 {[%clk 0:03:09.9]} 7... Be7 {[%clk 0:03:00.6]} 8. e3 {[%clk 0:03:11.6]} 8...
O-O {[%clk 0:03:01.5]} 9. Be2 {[%clk 0:03:13.4]} 9... c6 {[%clk 0:03:01.8]} 10.
O-O {[%clk 0:03:14.1]} 10... Bd7 {[%clk 0:03:02.6]} 11. bxc6 {[%clk 0:03:11.3]}
11... bxc6 {[%clk 0:03:00.5]} 12. c4 {[%clk 0:03:12.3]} 12... Ne4 {[%clk
0:02:54.7]} 13. d3 {[%clk 0:03:10.4]} 13... Nd6 {[%clk 0:02:52.7]} 14. c5 {[%clk
0:03:08.2]} 14... Nb5 {[%clk 0:02:39.5]} 15. d4 {[%clk 0:03:07.4]} 15... f6
{[%clk 0:02:30.6]} 16. Qb3 {[%clk 0:02:51.2]} 16... Nc7 {[%clk 0:02:29]} 17. Bc3
{[%clk 0:02:47.6]} 17... Qc8 {[%clk 0:02:17]} 18. Nbd2 {[%clk 0:02:43.7]} 18...
g5 {[%clk 0:02:15.2]} 19. Ra1 {[%clk 0:02:25]} 19... Nb5 {[%clk 0:02:13.2]} 20.
Bxb5 {[%clk 0:02:00.2]} 20... cxb5 {[%clk 0:02:12.4]} 21. Ba5 {[%clk 0:01:51.8]}
21... Qa6 {[%clk 0:01:57.9]} 22. Qb2 {[%clk 0:01:44.3]} 22... Nc6 {[%clk
0:01:40.4]} 23. Bd8 {[%clk 0:01:24.1]} 23... Qb7 {[%clk 0:01:39.9]} 24. Bxe7
{[%clk 0:01:20.2]} 24... Nxe7 {[%clk 0:01:41.8]} 25. Nb3 {[%clk 0:01:16.7]}
25... Ra8 {[%clk 0:01:39.3]} 26. Ne1 {[%clk 0:01:01.9]} 26... Rxa1 {[%clk
0:01:37]} 27. Qxa1 {[%clk 0:01:03.3]} 27... Nc6 {[%clk 0:01:37.9]} 28. Nd3
{[%clk 0:01:02]} 28... b4 {[%clk 0:01:36.6]} 29. h3 {[%clk 0:00:54.8]} 29... Kf7
{[%clk 0:01:36.7]} 30. Nb2 {[%clk 0:00:49.6]} 30... Qb5 {[%clk 0:01:29.8]} 31.
Qb1 {[%clk 0:00:38.5]} 31... Kg7 {[%clk 0:01:25.6]} 32. Qd3 {[%clk 0:00:37.5]}
32... Qxd3 {[%clk 0:01:20.3]} 33. Nxd3 {[%clk 0:00:38.8]} 33... e5 {[%clk
0:01:21.5]} 34. Kf1 {[%clk 0:00:34.3]} 34... Bc8 {[%clk 0:01:05.7]} 35. Ke1
{[%clk 0:00:34.2]} 35... Ba6 {[%clk 0:01:05.7]} 36. Kd2 {[%clk 0:00:34.2]} 36...
Bxd3 {[%clk 0:01:01.4]} 37. Kxd3 {[%clk 0:00:35.4]} 37... e4+ {[%clk 0:01:02.1]}
38. Ke2 {[%clk 0:00:33.8]} 38... f5 {[%clk 0:01:03.2]} 39. f3 {[%clk 0:00:32.2]}
39... h5 {[%clk 0:01:02.4]} 40. fxe4 {[%clk 0:00:29.7]} 40... fxe4 {[%clk
0:01:03.2]} 41. Kd2 {[%clk 0:00:21.4]} 41... Kf6 {[%clk 0:01:03.2]} 42. Nc1
{[%clk 0:00:20]} 42... g4 {[%clk 0:01:03.4]} 43. h4 {[%clk 0:00:18.8]} 43... g3
{[%clk 0:01:03.4]} 44. Ne2 {[%clk 0:00:20]} 44... Na5 {[%clk 0:01:00.2]} 45.
Nxg3 {[%clk 0:00:20.6]} 45... Nc4+ {[%clk 0:01:01.2]} 46. Kc2 {[%clk 0:00:18.8]}
46... Nxe3+ {[%clk 0:00:59.9]} 47. Kb3 {[%clk 0:00:20.6]} 47... Nxg2 {[%clk
0:00:57.6]} 48. Nxh5+ {[%clk 0:00:22]} 48... Ke6 {[%clk 0:00:57.4]} 49. Ng3
{[%clk 0:00:20.8]} 49... Nxh4 {[%clk 0:00:57.9]} 50. Kxb4 {[%clk 0:00:21.6]}
50... Ng6 {[%clk 0:00:54.5]} 51. Kb5 {[%clk 0:00:21.9]} 51... Kd7 {[%clk
0:00:55.1]} 52. Kb6 {[%clk 0:00:23.1]} 52... Kc8 {[%clk 0:00:55.2]} 53. Kc6
{[%clk 0:00:23.2]} 53... Nf4 {[%clk 0:00:55]} 54. Nf5 {[%clk 0:00:20.6]} 54...
Kd8 {[%clk 0:00:50]} 55. Ne3 {[%clk 0:00:21.9]} 55... Ng2 {[%clk 0:00:42.6]} 56.
Nxg2 {[%clk 0:00:21.8]} 56... Ke7 {[%clk 0:00:42]} 57. Kxd5 {[%clk 0:00:22.2]}
1-0

[Event "*** Titled Tuesday Blitz"]
[Site "Chess.com"]
[Date "2019.10.01"]
[Round "6"]
[White "kuli4ik"]
[Black "ChessQueen"]
[Result "1-0"]
[WhiteElo "2784"]
[BlackElo "2613"]
[TimeControl "180+2"]
[EndTime "14:27:01 PDT"]
[Termination "kuli4ik won by resignation"]

1. Nf3 {[%clk 0:03:01.9]} 1... d5 {[%clk 0:02:59.9]} 2. g3 {[%clk 0:03:02.8]}
2... Nf6 {[%clk 0:02:57.9]} 3. Bg2 {[%clk 0:03:03.2]} 3... c6 {[%clk 0:02:51.5]}
4. O-O {[%clk 0:02:59.6]} 4... Bf5 {[%clk 0:02:50.8]} 5. d3 {[%clk 0:02:59.1]}
5... h6 {[%clk 0:02:46.2]} 6. c4 {[%clk 0:02:58.5]} 6... e6 {[%clk 0:02:47.1]}
7. cxd5 {[%clk 0:02:55.1]} 7... exd5 {[%clk 0:02:47.9]} 8. Qb3 {[%clk
0:02:55.6]} 8... Qb6 {[%clk 0:02:47.1]} 9. Qc2 {[%clk 0:02:56.5]} 9... Nbd7
{[%clk 0:02:44]} 10. e4 {[%clk 0:02:55.7]} 10... dxe4 {[%clk 0:02:18.4]} 11.
dxe4 {[%clk 0:02:49.6]} 11... Bh7 {[%clk 0:02:15.4]} 12. Nc3 {[%clk 0:02:49.6]}
12... Be7 {[%clk 0:02:10.3]} 13. Qe2 {[%clk 0:02:48.3]} 13... Ng4 {[%clk
0:02:00.1]} 14. Bf4 {[%clk 0:02:35.7]} 14... g5 {[%clk 0:01:48.2]} 15. Bc1
{[%clk 0:02:32.9]} 15... O-O-O {[%clk 0:01:42.9]} 16. h3 {[%clk 0:02:30.6]}
16... Nge5 {[%clk 0:01:43.4]} 17. Nxe5 {[%clk 0:02:31.2]} 17... Nxe5 {[%clk
0:01:44.2]} 18. Be3 {[%clk 0:02:32.5]} 18... Qa5 {[%clk 0:01:40.8]} 19. Rfd1
{[%clk 0:02:27.4]} 19... Kb8 {[%clk 0:01:39.2]} 20. a3 {[%clk 0:02:23.2]} 20...
Rxd1+ {[%clk 0:01:32.4]} 21. Rxd1 {[%clk 0:02:19.4]} 21... Rd8 {[%clk
0:01:33.9]} 22. Rxd8+ {[%clk 0:02:16.4]} 22... Qxd8 {[%clk 0:01:34.8]} 23. f4
{[%clk 0:02:10]} 23... Nd3 {[%clk 0:01:12.9]} 24. Bf1 {[%clk 0:01:58]} 24...
gxf4 {[%clk 0:01:02.7]} 25. gxf4 {[%clk 0:01:57.6]} 25... Nc5 {[%clk 0:01:03.6]}
26. Qc4 {[%clk 0:01:55.8]} 26... Ne6 {[%clk 0:00:59.5]} 27. Qe2 {[%clk
0:01:46.8]} 27... Bc5 {[%clk 0:00:54.5]} 28. Bxc5 {[%clk 0:01:42.2]} 28... Nxc5
{[%clk 0:00:54.4]} 29. Qe3 {[%clk 0:01:43.4]} 29... Ne6 {[%clk 0:00:48.4]} 30.
f5 {[%clk 0:01:40.7]} 30... Qg5+ {[%clk 0:00:39.9]} 31. Kf2 {[%clk 0:01:40.3]}
31... Nc7 {[%clk 0:00:17.6]} 32. Qxg5 {[%clk 0:01:30.4]} 32... hxg5 {[%clk
0:00:19.5]} 33. Bc4 {[%clk 0:01:28]} 33... f6 {[%clk 0:00:20.6]} 34. Kg3 {[%clk
0:01:28.6]} 34... Ne8 {[%clk 0:00:21.8]} 35. Kg4 {[%clk 0:01:27.2]} 35... Ng7
{[%clk 0:00:20]} 36. Ne2 {[%clk 0:01:23]} 36... c5 {[%clk 0:00:21.1]} 37. Ng3
{[%clk 0:01:22.9]} 37... Kc7 {[%clk 0:00:21]} 38. Nh5 {[%clk 0:01:23.8]} 38...
Ne8 {[%clk 0:00:20.7]} 39. Bf7 {[%clk 0:01:20.8]} 39... Nd6 {[%clk 0:00:20.8]}
40. Nxf6 {[%clk 0:01:21.3]} 40... Nxf7 {[%clk 0:00:20.5]} 41. Nxh7 {[%clk
0:01:22.2]} 41... Kd6 {[%clk 0:00:21.5]} 42. Nxg5 {[%clk 0:01:21.9]} 42... Ne5+
{[%clk 0:00:22.9]} 43. Kf4 {[%clk 0:01:16.8]} 43... Nd3+ {[%clk 0:00:23.9]} 44.
Ke3 {[%clk 0:01:17.5]} 44... Nxb2 {[%clk 0:00:25.8]} 45. Nf7+ {[%clk 0:01:14.9]}
45... Ke7 {[%clk 0:00:24.6]} 46. Ne5 {[%clk 0:01:15.7]} 46... b5 {[%clk
0:00:25.4]} 47. Nc6+ {[%clk 0:01:14]} 47... Kf6 {[%clk 0:00:20.2]} 48. Nxa7
{[%clk 0:01:12.6]} 48... Nc4+ {[%clk 0:00:21.4]} 49. Kf4 {[%clk 0:01:13.9]}
49... b4 {[%clk 0:00:22.9]} 50. axb4 {[%clk 0:01:11.9]} 50... cxb4 {[%clk
0:00:24.8]} 51. Nb5 {[%clk 0:01:10.6]} 51... b3 {[%clk 0:00:26.2]} 52. Nc3
{[%clk 0:01:09.7]} 52... b2 {[%clk 0:00:27.2]} 53. h4 {[%clk 0:01:10.8]} 53...
Ne5 {[%clk 0:00:14.9]} 54. h5 {[%clk 0:01:08.9]} 54... Nf7 {[%clk 0:00:15.9]}
55. Nb1 {[%clk 0:01:04.7]} 55... Ne5 {[%clk 0:00:15.5]} 56. h6 {[%clk
0:01:01.9]} 56... Nf7 {[%clk 0:00:15.3]} 57. h7 {[%clk 0:01:03.2]} 57... Kg7
{[%clk 0:00:17]} 58. e5 {[%clk 0:01:03.3]} 58... Kxh7 {[%clk 0:00:18.3]} 59. e6
{[%clk 0:01:04.7]} 59... Nd6 {[%clk 0:00:18.6]} 60. Ke5 {[%clk 0:01:03.4]} 60...
Ne8 {[%clk 0:00:14]} 61. f6 {[%clk 0:01:03.4]} 61... Kg8 {[%clk 0:00:14.7]} 62.
f7+ {[%clk 0:01:04.3]} 62... Kf8 {[%clk 0:00:16.1]} 63. fxe8=Q+ {[%clk
0:01:05.1]} 63... Kxe8 {[%clk 0:00:17.7]} 64. Kf6 {[%clk 0:01:06]} 64... Kf8
{[%clk 0:00:18.8]} 65. Nc3 {[%clk 0:01:06.2]} 1-0